Cogmind - Beta 14 @@@ ROGUE MODE // 2024.12.27 @ 11:11:45 Player: PTS Result: Destroyed by D-53 Grenadier with Mini Grenade Launcher Performance ------------- Evolutions (0) 0 Regions Visited (2) 400 Robots Destroyed (17) 85 Value Destroyed (355) 355 Prototype IDs (0) 0 Alien Tech Used (0) 0 Bonus (0) 0 TOTAL SCORE: 840 Bonus ------- None Cogmind --------- Core Integrity 0/250 Matter 292/300 Energy 160/160 System Corruption 16% Temperature Cool (4) Movement Walking (120) Location -10/Mines Parts ------- > --- POWER (1) -------- Light Nuclear Core > --- PROPULSION (2) --- Aluminum Leg Aluminum Leg > --- UTILITY (2) ------ Small Storage Unit > --- WEAPON (2) ------- Small Laser > --- INVENTORY (8) ---- Ion Engine Wheel Small Storage Unit Grenade Launcher Datajack Peak State ------------ > --- POWER ------------ Light Nuclear Core > --- PROPULSION ------- Aluminum Leg Wheel > --- UTILITY ---------- Small Storage Unit > --- WEAPON ----------- Small Laser Light Assault Rifle > --- INVENTORY -------- Ion Engine Aluminum Leg Small Storage Unit Grenade Launcher Datajack [Rating: 8] Favorites ----------- Power Ion Engine Engine Ion Engine Power Core Light Nuclear Core Propulsion Wheel Leg Aluminum Leg Wheel Wheel Utility Small Storage Unit Device Sensor Array Storage Small Storage Unit Processor Signal Interpreter Weapon EM Pulse Gun Energy Gun EM Pulse Gun Energy Cannon Beam Cannon Ballistic Gun Assault Rifle Launcher Grenade Launcher Build | -11 -10 -10 ------- Run | Yrd Mat Min Slots Evolved . | . . . Power . | . . . Propulsion . | . . . Utility . | . . . Weapon . | . . . Parts Attached 27 | 7 7 13 Power 3 | 1 1 1 Engine 2 | 1 1 . Core 1 | . . 1 Reactor . | . . . Propulsion 5 | 2 . 3 Treads . | . . . Leg 2 | . . 2 Wheel 3 | 2 . 1 Hover . | . . . Flight . | . . . Utility 5 | 2 2 1 Device 2 | 1 1 . Storage 2 | 1 . 1 Processor 1 | . 1 . Hackware . | . . . Protection . | . . . Artifact . | . . . Weapon 14 | 2 4 8 Energy Gun 3 | . 1 2 Energy Cannon 2 | . 1 1 Ballistic Gun 6 | 2 1 3 Ballistic Cannon . | . . . Launcher 3 | . 1 2 Special Weapon . | . . . Impact Weapon . | . . . Slashing Weapon . | . . . Piercing Weapon . | . . . Special Melee Weapon . | . . . Unidentified Prototypes . | . . . Parts Lost 10 | . . 10 Power 1 | . . 1 Propulsion 2 | . . 2 Utility 2 | . . 2 Weapon 5 | . . 5 Highest Loss Streak 7 | . . 7 To Critical Strikes . | . . . Average Slot Usage (%) 76 | . 98 59 Engine 6 | . 12 1 Core 1 | . . 1 Leg 2 | . . 3 Wheel 18 | . 28 11 Device 7 | . 14 1 Storage 10 | . 11 10 Processor 2 | . 2 1 Energy Gun 10 | . 12 9 Energy Cannon 1 | . 3 . Ballistic Gun 12 | . 12 12 Launcher 2 | . . 3 Peak Build Rating 8 | 7 7 8 Average Rating 5 | 4 6 4 On Entrance 4 | . 7 7 Naked Turns . | . . . Heaviest Build 16 | 14 16 12 Greatest Support 20 | 20 20 20 Greatest Overweight (x) 3 | 1 . 3 Average Overweight (x) . | . . . Largest Inventory Capacity 8 | 8 8 8 Average Capacity 7 | 6 7 7 Most Carried 6 | 4 5 6 Average Carried 3 | . 3 3 Final Capacity 8 | 8 5 8 Final Carried 5 | . 5 5 Class Distribution -------------------- 91% | Mutant 8% | Scavenger-Mutant Dominant Class ---------------- Mutant | -10/Materials Mutant | -10/Mines Resources | -11 -10 -10 ----------- Run | Yrd Mat Min Matter Collected 681 | 275 . 406 Remotely . | . . . Salvage Created 569 | 105 287 177 Parts 43 | 10 23 10 Haulers Intercepted . | . . . Recyclers Shooed . | . . . Parts Field Recycled . | . . . Retrieved Matter . | . . . Parts Self-Destructed . | . . . Prevented . | . . . Kills | -11 -10 -10 ------- Run | Yrd Mat Min Combat Hostiles Destroyed 18 | . 6 12 Guns 7 | . 1 6 Cannons 2 | . 2 . AOE 9 | . 3 6 Classes Destroyed 7 | 2 4 1 Worker 1 | . 1 . Tunneler 2 | 2 . . Recycler 2 | 1 1 . Watcher 2 | . 2 . Swarmer 5 | . 3 2 Grunt 5 | . 3 2 Assembled 8 | . . 8 Best Kill Streak 8 | 2 8 5 Combat Bots Only 5 | . 5 5 Max Kills in Single Turn 2 | 1 2 2 Gunslinging . | . . . Exploded 2 | . 1 2 Melee . | . . . Uniques/NPCs Destroyed . | . . . Combat | -11 -10 -10 -------- Run | Yrd Mat Min Hostile Shots Fired 95 | . 19 76 Missed 31 | . 7 24 Damage Taken 1070 | . 208 862 Core 254 | . 53 201 Absorbed by Shields . | . . . Regen/Repaired (Parts) 42 | . 42 . Core Remaining (%) 100 | 100 . . Volleys Fired 63 | 8 21 34 Largest 2 | 2 2 2 Hottest 100 | 40 100 80 Shots Fired 97 | 16 38 43 Gun 78 | 16 29 33 Cannon 9 | . 7 2 Launcher 10 | . 2 8 Special . | . . . Kinetic 50 | 16 10 24 Thermal 10 | . 7 3 Explosive 10 | . 2 8 Electromagnetic 27 | . 19 8 Robot Hit Streak 8 | 8 4 8 Robot Miss Streak 7 | 1 7 2 Penetration Max . | . . . Secondary Targets . | . . . Shots Hit Robots 49 | 11 16 22 Core Hits 41 | 3 13 25 Critical Kills . | . . . Critical Parts Destroyed . | . . . Critical Strikes . | . . . Melee Attacks . | . . . Impact . | . . . Slashing . | . . . Piercing . | . . . Sneak Attacks . | . . . Combat Hostiles . | . . . Follow-up Attacks . | . . . Damage Inflicted 1111 | 124 429 558 Guns 492 | 124 150 218 Cannons 71 | . 71 . Explosions 548 | . 208 340 Melee . | . . . Ramming . | . . . Kinetic 352 | 124 66 162 Thermal 116 | . 105 11 Explosive 514 | . 174 340 Electromagnetic 129 | . 84 45 Impact . | . . . Slashing . | . . . Piercing . | . . . Highest Corruption 16 | . 2 16 Average Corruption 10 | . 2 14 Corruption Purged . | . . . Corruption Blocked . | . . . Effects 25 | . 2 23 Message Errors 3 | . . 3 Matter Fused 9 | . 2 7 Heat Flow Errors 3 | . . 3 Energy Discharges 3 | . . 3 Parts Rejected 1 | . . 1 Data Loss (minor) 3 | . . 3 Misdirections 2 | . . 2 Weapon Failures 1 | . . 1 Overload Shots . | . . . Overflow Damage . | . . . Projectiles . | . . . Explosions . | . . . Melee . | . . . Knockbacks . | . . . Impact . | . . . Kinetic . | . . . Secondary . | . . . Self-Inflicted Damage 129 | . 90 39 Shots 4 | . 3 1 Rammed . | . . . Targets Rammed . | . . . Kicked . | . . . Crushed . | . . . Highest Temperature 275 | . 221 275 Average Temperature 93 | . 106 80 Received Heat Transfer 266 | . 48 218 Siege Activations . | . . . Robots Corrupted . | . . . Combat Hostiles . | . . . Parts Fried . | . . . Impact Corruptions . | . . . Robots Melted . | . . . Combat Hostiles . | . . . Parts Melted . | . . . Heat Transferred 173 | . 148 25 Parts Sabotaged . | . . . Parts Stolen . | . . . Parts Stripped . | . . . Power Chain Reactions 1 | . 1 . Alert | -11 -10 -10 ------- Run | Yrd Mat Min Peak Influence 294 | 15 294 254 Initial 114 | . 9 114 Average 119 | 5 142 120 Maximum Alert Level 1 | . 1 1 Low Security (%) 76 | 100 53 91 Level 1 23 | . 46 8 Level 2 . | . . . Level 3 . | . . . Level 4 . | . . . Level 5 . | . . . High Security . | . . . Max Security . | . . . Squads Dispatched 3 | . 3 . Investigation 3 | . 3 . Extermination . | . . . Reinforcement . | . . . Assault . | . . . Garrison . | . . . Intercept . | . . . Searches Triggered . | . . . Construction Impeded . | . . . Haulers Reinforced . | . . . Active Scanning Responses . | . . . Cargo Convoy Interrupts . | . . . Stealth | -11 -10 -10 --------- Run | Yrd Mat Min Distress Signals 2 | . 1 1 Communications Jammed . | . . . Distress Signals . | . . . Times Spotted 28 | . 10 18 Peak Tracking Total 5 | . 4 5 Tactical Retreats 2 | . . 2 Traps | -11 -10 -10 ------- Run | Yrd Mat Min Traps Triggered 2 | . 2 . Indirectly . | . . . Trap Hack Attempts . | . . . Triggered . | . . . Disarmed . | . . . Reprogrammed . | . . . Reused . | . . . Traps Extracted . | . . . Installed . | . . . Triggered . | . . . Machines | -11 -10 -10 ---------- Run | Yrd Mat Min Machines Disabled 5 | . 3 2 Max in Single Turn 1 | . 1 1 Machines Repaired . | . . . Machines Dismantled . | . . . Machines Sabotaged . | . . . Overloaded Fab Kills . | . . . Hacking | -11 -10 -10 --------- Run | Yrd Mat Min Machines Accessed 7 | . 7 . Terminals 5 | . 5 . Fabricators . | . . . Repair Stations 1 | . 1 . Recycling Units 1 | . 1 . Scanalyzers . | . . . Garrison Access . | . . . Total Hacks 17 | . 17 . Successful 11 | . 11 . Failed 6 | . 6 . Catastrophic 2 | . 2 . Database Lockouts . | . . . Manual 8 | . 8 . Terminals 11 | . 11 . Fabricators . | . . . Repair Stations 4 | . 4 . Recycling Units 2 | . 2 . Scanalyzers . | . . . Garrison Access . | . . . Terminal Hacks 6 | . 6 . Robot Analysis 2 | . 2 . Terminal Index 1 | . 1 . Recycling Unit Index 1 | . 1 . Hauler Manifests 1 | . 1 . Zone Layout 1 | . 1 . Fabricator Hacks . | . . . Repair Station Hacks 3 | . 3 . Scan Component 2 | . 2 . Repair 1 | . 1 . Recycling Unit Hacks 2 | . 2 . Report Inventory 1 | . 1 . Retrieve Components 1 | . 1 . Scanalyzer . | . . . Garrison Access Hacks . | . . . Unauthorized Hacks . | . . . Terminals . | . . . Fabricators . | . . . Repair Stations . | . . . Recycling Units . | . . . Scanalyzers . | . . . Garrison Access . | . . . Data Cores Recovered . | . . . Used . | . . . Hacking Detections 3 | . 3 . Full Trace Events 2 | . 2 . Feedback Events . | . . . Feedback Blocked . | . . . Robot Schematics Acquired . | . . . Robots Built . | . . . Authchips . | . . . Time . | . . . Total Robot Build Rating . | . . . Part Schematics Acquired . | . . . Parts Built . | . . . Authchips . | . . . Time . | . . . Total Part Build Rating . | . . . Parts Repaired 1 | . 1 . Time 26 | . 26 . Parts Recycled . | . . . Recycled Matter . | . . . Retrieved Matter . | . . . Retrieved Components 2 | . 2 . Parts Scanalyzed . | . . . Part Schematics Acquired . | . . . Parts Damaged . | . . . Bothacking | -11 -10 -10 ------------ Run | Yrd Mat Min Used RIF Installer . | . . . Robots Hacked . | . . . Non-combat . | . . . Combat . | . . . Robot Hacks Applied . | . . . Relay Couplers Released . | . . . Fabnet Peak Effective % . | . . . Robots Rewired . | . . . Allies Hacked . | . . . Hacks Repelled . | . . . Allies | -11 -10 -10 -------- Run | Yrd Mat Min Total Allies . | . . . Largest Group . | . . . Highest-Rated Group . | . . . Highest-Rated Ally . | . . . Total Orders . | . . . Ally Attacks . | . . . Total Damage . | . . . Kills . | . . . Allies Corrupted . | . . . Allies Melted . | . . . Intel | -11 -10 -10 ------- Run | Yrd Mat Min Robot Analysis Total 2 | . 2 . Derelict Logs Recovered . | . . . Drone Launches . | . . . Drone Recoveries . | . . . Exploration | -11 -10 -10 ------------- Run | Yrd Mat Min Turns Passed 911 | 79 375 457 Spaces Moved 704 | 52 289 363 Core 73 | 16 . 57 Treads . | . . . Legs 43 | . . 43 Wheels 588 | 36 289 263 Hover . | . . . Flight . | . . . Fastest Speed 50 | 50 80 80 Average Speed 85 | 82 80 89 Slowest Speed 200 | 100 80 200 Overloaded Moves . | . . . Propulsion Burnouts . | . . . Robots Hopped . | . . . Cave-ins Triggered . | . . . Exploration Rate (%) 42 | 4 54 68 Regions Visited 2 Branch Regions 1 Pre-discovered Areas . | . . . Known Exits Taken 1 | . 1 . Unknown Exits Taken 1 | 1 . . Scrap Searched 1 | . . 1 Spaces Dug . | . . . Terrain Destroyed 73 | . 31 42 Melee . | . . . Projectile . | . . . AOE 73 | . 31 42 Terrain Rammed . | . . . Walls Destroyed . | . . . Machines Disabled . | . . . Actions | -11 -10 -10 --------- Run | Yrd Mat Min Total 918 | 73 392 453 Wait 100 | . 67 33 Move 702 | 51 288 363 Hop . | . . . Pick Up 23 | 7 7 9 Fast Attach 1 | . 1 . Attach 17 | 7 . 10 Detach 1 | . . 1 Swap 9 | . 6 3 Drop 2 | . 2 . Fire 63 | 8 21 34 Melee . | . . . Ram . | . . . Kick . | . . . Crush . | . . . Escape Stasis . | . . . Rewire . | . . . Trap . | . . . Miscellaneous . | . . . Route ------- -11/Scrapyard -10/Materials (discovered 4 exits: [*Mat x2] / *Min x2) -10/Mines History --------- Turn | Location | Event 7 | -11/Scrapyard | Discovered new exit (range 15) 80 | -11/Scrapyard | Entered Materials 85 | -10/Materials | Discovered new exit (range 17) 85 | -10/Materials | Discovered new exit (range 20) 197 | -10/Materials | Discovered new exit (range 7) 300 | -10/Materials | Build established: Mutant 406 | -10/Materials | Discovered new exit (range 11) 440 | -10/Materials | Repaired Ion Engine 455 | -10/Materials | Identified exit to Mines 455 | -10/Materials | Entered Mines 461 | -10/Mines | Assembled infested the area 466 | -10/Mines | Assisted by a Guerilla fighting off Assembled 519 | -10/Mines | Core integrity fell below 50% 519 | -10/Mines | System corruption reached 10% 553 | -10/Mines | Lost 7 parts (1p2n2u2w) 696 | -10/Mines | Core integrity fell below 20% 912 | -10/Mines | Destroyed by D-53 Grenadier with Mini Grenade Launcher Last Messages --------------- 00789_ Core Extractor disabled. 00791_ EM Pulse Gun destroyed. 00793_ System corrupted: Component data lost. 00820_ System corrupted: Energy discharge (-38). 00828_ Critical hit (Burn: +37). 00830_ G-47 Trooper destroyed. 00835_ System corrupted: Heat flow error (+279). 00839_ G-34 Mercenary destroyed. 00842_ Acquired Sml. Laser. 00845_ Acquired 47 matter. 00847_ Acquired Ion Engine. 00849_ Acquired Lgt. Nuclear Core. 00851_ Acquired 10 matter. 00853_ Acquired Aluminum Leg. 00859_ Acquired 20 matter. 00867_ System corrupted: Energy discharge (-40). 00887_ System corrupted: Heat flow error (+152). 00896_ Lgt. Assault Rifle destroyed. 00902_ The unstable cave ceiling collapses. 00910_ System corrupted: Matter fused (-8). Map ----- +----------------------------------------------------+ | ???????"" " ####%##?????????# #?????????? | | ??? ## #??# #??????????# ##????????? | | ? #?# #??# #??????????# #????????? | | ? #?# #### #??????????# #????????? | | #?# #??????????# #????????? | | ?###############?# ######??????????## ##???????? | | ?????????????????# ##??????????????# ##??????? | | ?????????????##### #??????????????## ##?????? | | ????????????## ##???????????????# #?????? | | ???????????## #???????????????## #?????? | | ???????????# ##??????????????# ##???### | | ???????????# ##?????????????# ##??? # | | ???????????## ######????????# ##?# # | | ????????????## ### #????????# ### # | | ?????????????###??## ### #????????# # ## # | | ???????????????????# #?# #????????# ## # # | | ???????????????????## ##?# #????????# ### # | | ?????????????????######### #????????# #?## | | ?????????????????? # ##???????# #??# | | ??????????????????? ##??????# #??# | | ????????????????????# ##?????# #??# | | ????????????????????# ##????# #??# # | | ????????????????????# #????# #??## ## | | ????????????????????# #??### #???## #? | | ????????????????????# d #??# #????# #? | | ????????????????????# @ #??# ####????# #? | | ????????????????????# # #?# ##??????# #? | | ????????????????????# # #### ##?????# #? | | ????????????????????# ##### ####### ## | | ?????????????####???# #???# | | ????????????## ##??## ##?## ### ####### | | ????????????# ##??###???# #????## | | ????????????# ##??????# #????# % | | ????????????# ##?????## ####### #????# | | ????????????## ###????###??????# #????# | | ?????????????# ##????????????# #????# # | | ?????????????## #????????????# #????# # | | ??????????????## """ #?????####???# #???# # # | | ???????#####???## """ #?????# ???# #???# ## # | | ??????## ##???# """ #????## ##### #???## ?# # | | ????### ##??# ##???# #????# ?# # | | ???## ##### "###### #????##?# # | | ???# #### ## ### ## ###???????# ? | | ???# ## "### # ## # # #?????????# ? | | ????# ## "##" # ## ## ##????##???# ? | | ?????# # #####????? ????%? | | ?????## # #####????????? #???? ? | | ??????# ###### ## ##?####???????? #?????? | | ??????# #????#]## #### ###????## #?????? | | ??????# #????# ### ## ##??## ##????? | +----------------------------------------------------+ Best States ------------- Heat Dissipation 25 Energy Generation 14 Energy Capacity 250 Matter Stores 300 Matter Capacity 300 Sight Range 16 Robot Scan Range 14 Terrain Scan Density 10 Evasion (%) 52 Item Schematics ----------------- None Robot Schematics ------------------ None Fabricated ------------ Nothing Alien Tech Used ----------------- None Achievements -------------- Let's See Who's Tougher Challenges ------------ None Game ------ Seed AmuletHeatFocus Manual? 0 Play Time 00:12:04 Cumulative 12.5 hours Start 2024.12.27 @ 10:59:41 End 2024.12.27 @ 11:11:45 Sessions 1 Manual Loads 0 Difficulty Rogue Special Mode None Game No. 23 Rogue 23 Adventurer 0 Explorer 0 Win Type - Total 0 Types 0/0/0/0/0/0/0/0/0 Lore% 11 Gallery% 20 Achievement% 20 Wizard Run 0 Options --------- Layout 1 ASCII 0 Keyboard 0 Movement Mouse Keybinds 0 Fullscreen 1 Font 24/Smallcaps Map View 50x35 Zoom Use 0% Tactical HUD 1 Map Filters NONE Filters NONE Steam 1 RUN: f20f185b-34d4-4aa9-a392-725552623a0c